[Event "Live Chess"]
[Site "Chess.com"]
[Date "2018.01.11"]
[White "Arugamama"]
[Black "Rakesh111"]
[Result "1-0"]
[ECO "B23"]
[WhiteElo "1848"]
[BlackElo "1788"]
[TimeControl "1800"]
[EndTime "1:56:52 PST"]
[Termination "Arugamama won by checkmate"]
[CurrentPosition "6Rk/8/5N2/8/7p/5NP1/7K/8 b - - 1 47"]

1.e4 {[%clk 0:29:57]} c5 {[%clk 0:29:52]} 2.Nc3 {[%clk 0:29:52]} b6 {[%clk 0:29:47]} 3.Nf3 {[%clk 0:29:30]} Bb7 {[%clk 0:29:44]} 4.d4 {[%clk 0:29:20]} cxd4 {[%clk 0:29:31]} 5.Nxd4 {[%clk 0:29:16]} e6 {[%clk 0:29:16]} 6.Bd3 {[%clk 0:28:31]} a6 {[%clk 0:28:54]} 7.O-O {[%clk 0:28:24]} Qf6 {[%clk 0:28:24]} 8.Nf3 {[%clk 0:28:04]} h6 {[%clk 0:27:53]} 9.Re1 {[%clk 0:27:15]} g5 {[%clk 0:27:16]} 10.Be3 {[%clk 0:25:53]} Bc5 {[%clk 0:27:09]} 11.Bxc5 {[%clk 0:25:36]} bxc5 {[%clk 0:27:04]} 12.Qe2 {[%clk 0:25:28]} Nc6 {[%clk 0:26:42]} 13.e5 {[%clk 0:24:59]} Qe7 {[%clk 0:26:16]} 14.a3 {[%clk 0:24:42]} g4 {[%clk 0:26:06]} 15.Nd2 {[%clk 0:24:21]} h5 {[%clk 0:25:47]} 16.Nc4 {[%clk 0:24:03]} Rb8 {[%clk 0:24:21]} 17.Nd6+ {[%clk 0:23:33]} Kf8 {[%clk 0:24:12]} 18.Bxa6 {[%clk 0:21:51]} Bxa6 {[%clk 0:24:08]} 19.Qxa6 {[%clk 0:21:39]} Rxb2 {[%clk 0:23:39]} 20.Qd3 {[%clk 0:20:30]} Nd4 {[%clk 0:23:10]} 21.Rac1 {[%clk 0:20:06]} Qg5 {[%clk 0:22:36]} 22.Qe3 {[%clk 0:18:46]} Qxe3 {[%clk 0:22:08]} 23.fxe3 {[%clk 0:18:25]} Nxc2 {[%clk 0:21:53]} 24.Re2 {[%clk 0:18:11]} Rb3 {[%clk 0:20:14]} 25.Rexc2 {[%clk 0:17:56]} Rxa3 {[%clk 0:20:11]} 26.Ra2 {[%clk 0:17:14]} Rb3 {[%clk 0:19:29]} 27.Ra8+ {[%clk 0:15:52]} Kg7 {[%clk 0:19:20]} 28.Nce4 {[%clk 0:13:55]} Rxe3 {[%clk 0:18:48]} 29.Rf1 {[%clk 0:12:48]} Nh6 {[%clk 0:18:24]} 30.Rxh8 {[%clk 0:12:43]} Kxh8 {[%clk 0:18:20]} 31.Nxc5 {[%clk 0:11:00]} Rxe5 {[%clk 0:17:59]} 32.Nxd7 {[%clk 0:10:48]} Rd5 {[%clk 0:17:43]} 33.Nxf7+ {[%clk 0:10:41]} Kg7 {[%clk 0:17:13]} 34.Nfe5 {[%clk 0:09:14]} Nf5 {[%clk 0:16:59]} 35.Rb1 {[%clk 0:07:27]} g3 {[%clk 0:15:57]} 36.hxg3 {[%clk 0:07:15]} Nxg3 {[%clk 0:15:53]} 37.Rb6 {[%clk 0:06:49]} Ne2+ {[%clk 0:15:39]} 38.Kh2 {[%clk 0:06:39]} Rd4 {[%clk 0:14:15]} 39.g3 {[%clk 0:06:05]} Rd2 {[%clk 0:13:51]} 40.Kh3 {[%clk 0:05:19]} Rd1 {[%clk 0:12:45]} 41.Rxe6 {[%clk 0:04:17]} Nd4 {[%clk 0:11:29]} 42.Rd6 {[%clk 0:03:33]} Rd2 {[%clk 0:09:57]} 43.Rg6+ {[%clk 0:03:07]} Kh8 {[%clk 0:09:39]} 44.Nf6 {[%clk 0:02:58]} Rh2+ {[%clk 0:08:04]} 45.Kxh2 {[%clk 0:02:53]} Nf3+ {[%clk 0:07:59]} 46.Nxf3 {[%clk 0:02:49]} h4 {[%clk 0:07:55]} 47.Rg8# {[%clk 0:02:46]}  1-0